fUSD/lending_fUSD_20260107
["ID","MTS","AMOUNT","RATE_DAILY","PERIOD"]
[400753440,1767815173826,-119.66881383,0.00011681,2]
[400753441,1767815173848,-80.33118617,0.00012026,2]
[400753442,1767815175330,-218.4146248,0.00012026,2]
[400753443,1767815177673,-1.25418903,0.00012026,2]
[400753444,1767815177696,-517.16043577,0.00012027,2]
[400753445,1767815185649,-500.0,0.00012027,2]
[400753446,1767815186819,-282.82985658,0.00012027,2]
[400753447,1767815189493,-399.60829359,0.00012027,2]
[400753448,1767815191946,-453.73164159,0.00012027,2]
[400753449,1767815193549,-307.92597978,0.00012027,2]
[400753450,1767815195749,-210.37379269,0.00012027,2]
[400753451,1767815195773,-49.28390184,0.00012373,2]
[400753452,1767815199104,-220.47777362,0.00012373,2]
[400753453,1767815202786,-229.16887849,0.00012373,2]
[400753454,1767815207775,-229.16887849,0.00012373,2]
[400753455,1767815208891,-465.96043818,0.00012373,2]
[400753456,1767815212106,-465.96043818,0.00012373,2]
[400753457,1767815213798,-361.37527415,0.00012373,2]
[400753458,1767815217889,-500.0,0.00012373,2]
[400753459,1767815219569,-150.23441705,0.00012373,2]
[400753460,1767815219596,-250.0,0.00012469,2]
[400753461,1767815219620,-99.76558295,0.00012469,2]
[400753462,1767815221320,-172.66428767,0.00012469,2]
[400753464,1767815225016,-27.57012938,0.00012469,2]
[400753465,1767815225040,-139.70592948,0.00012719,2]
[400753466,1767815231127,-252.16866732,0.00012719,2]
[400753467,1767815234457,-188.76767996,0.00012719,2]
[400753468,1767815237889,-223.26856958,0.00012719,2]
[400753469,1767815239844,-248.88986117,0.00012719,2]
[400753470,1767815241922,-346.85033818,0.00012719,2]
[400753471,1767815243934,-453.73164159,0.00012719,2]
[400753472,1767815247085,-300.0,0.00012719,2]
[400753473,1767815249431,-282.78925076,0.00012719,2]
[400753474,1767815250641,-174.29552926,0.00012719,2]
[400753475,1767815253178,-61.1625327,0.00012719,2]
[400753476,1767815253210,-1680.0,0.00012848,2]
[400753477,1767815253239,-250.0,0.00012849,2]
[400753478,1767815253266,-150.0,0.0001297,2]
[400753479,1767815253294,-2156.59,0.00013011,2]
[400753480,1767815254726,-1404.5049346,0.00013031,2]
[400753481,1767815255692,-223.4736911,0.00013031,2]
[400753482,1767815257770,-290.29070041,0.00013031,2]
[400753483,1767815259099,-3053.5898201,0.00013031,2]
[400753484,1767815259129,-1221.2003598,0.00013064,2]
[400753485,1767815259736,-237.49070041,0.00013064,2]
[400753486,1767815259906,-1212.93893979,0.00013064,2]
[400753487,1767815259915,-237.49070041,0.00013141,2]
[400753488,1767815261216,-166.82761257,0.00013141,2]
[400753489,1767815264324,-129.95168702,0.00013141,2]
[400753490,1767815264352,-150.99,0.00013141,2]
[400753491,1767815264381,-420.0,0.00013201,2]
[400753492,1767815264408,-150.0,0.00013409,2]
[400753493,1767815264439,-500.0,0.00013409,2]
[400753494,1767815264470,-500.0,0.00013409,2]
[400753495,1767815264502,-350.15275208,0.00013409,2]
[400753496,1767815264534,-500.0,0.00013409,2]
[400753497,1767815264566,-500.0,0.00013409,2]
[400753498,1767815264599,-500.0,0.00013409,2]
[400753499,1767815264632,-500.0,0.00013409,2]
[400753500,1767815264667,-607.64321422,0.00013409,2]
[400753501,1767815264699,-171.68619313,0.00013409,2]
[400753502,1767815265069,-39.1623071,0.00013409,2]
[400753503,1767815265240,-167.77555432,0.00013409,2]
[400753504,1767815267389,-332.22444568,0.00013409,2]
[400753505,1767815267416,-167.77555432,0.00013409,2]
[400753509,1767815269880,-33.58826238,0.00013409,2]
[400753510,1767815269906,-466.41173762,0.00013409,2]
[400753511,1767815271282,-33.58826238,0.00013409,2]
[400753512,1767815271307,-134.9099308,0.00013409,2]
[400753516,1767815275607,-476.34437971,0.00013409,2]
[400753517,1767815275629,-23.65562029,0.0001341,2]
[400753518,1767815278315,-500.0,0.0001341,2]
[400753519,1767815281365,-188.929543,0.0001341,2]
[400753520,1767815282513,-150.0,0.00013409,2]
[400753521,1767815282535,-189.6333978,0.0001341,2]
[400753522,1767815284550,-300.0,0.0001341,2]
[400753523,1767815286063,-446.03289329,0.0001341,2]
[400753524,1767815291150,-173.85716246,0.0001341,2]
[400753525,1767815293464,-236.09533642,0.00013343,2]
[400753526,1767815295072,-200.0,0.00013343,2]
[400753527,1767815296200,-220.83112151,0.00013343,2]
[400753528,1767815301821,-32.55684207,0.00013343,2]
[400753529,1767815301845,-416.43125076,0.0001341,2]
[400753530,1767815304847,-292.43511023,0.00013245,2]
[400753531,1767815306942,-330.47785856,0.00013245,2]
[400753532,1767815309066,-275.4372369,0.00013245,2]
[400753533,1767815313686,-383.1415251,0.00013245,2]
[400753534,1767815315423,-202.91448348,0.00013245,2]
[400753535,1767815320564,-429.16887849,0.00013245,2]
[400753536,1767815322227,-222.97836515,0.00013245,2]
[400753537,1767815325034,-217.17014342,0.00013245,2]
[400753538,1767815326730,-226.1822912,0.00013245,2]
[400753539,1767815329314,-177.00021117,0.00013245,2]
[400753540,1767815331104,-270.83112151,0.00013245,2]
[400753541,1767815332741,-169.92921408,0.00013245,2]
[400753542,1767815338814,-195.25262585,0.00013245,2]
[400753543,1767815341143,-161.72375284,0.00013245,2]
[400753544,1767815343086,-309.59234462,0.00013245,2]
[400753545,1767815345998,-177.84001201,0.00013245,2]
[400753546,1767815347566,-179.95227903,0.00013245,2]
[400753547,1767815349737,-195.0,0.00013245,2]
[400753548,1767815351389,-302.0,0.00013245,2]
[400753549,1767815352977,-258.94882433,0.00013245,2]
[400753550,1767815355432,-174.42241913,0.00013245,2]
[400753551,1767815358310,-297.97604525,0.00013245,2]
[400753552,1767815360372,-176.82092839,0.00013245,2]
[400753553,1767815363243,-142.95432926,0.00013245,2]
[400753554,1767815363266,-35.60230301,0.00013409,2]
[400753555,1767815410916,-321.17076733,0.00013409,2]
[400753556,1767815413275,-262.78607824,0.00013409,2]
[400753557,1767815416401,-189.13364541,0.00013409,2]
[400753558,1767815418718,-329.42632757,0.00013409,2]
[400753559,1767815421896,-97.48318145,0.00013409,2]
[400753560,1767815421918,-65.66316943,0.00013409,2]
[400753561,1767815423399,-500.0,0.00013121,2]
[400753562,1767815423422,-220.67857489,0.00013409,2]
[400753563,1767815425867,-13.65825568,0.00013409,2]
[400753564,1767815425890,-283.46910398,0.00013409,2]
[400753574,1767815432243,-16.53089602,0.00013409,2]
[400753575,1767815432254,-260.0,0.0001341,2]
[400753576,1767815432263,-200.0,0.0001341,2]
[400753577,1767815432273,-7761.4501324,0.0001341,2]
[400753578,1767815432283,-9999.99,0.0001341,2]
[400753579,1767815432292,-999.99,0.0001341,2]
[400753580,1767815432302,-2671.63,0.0001341,2]
[400753581,1767815432312,-200.0,0.00013544,2]
[400753582,1767815432322,-435.92,0.00013555,2]
[400753583,1767815432331,-200.0,0.0001368,2]
[400753584,1767815432341,-200.0,0.00013699,2]
[400753585,1767815432351,-195.0,0.00013716,2]
[400753586,1767815432360,-5000.0,0.00013716,2]
[400753587,1767815432369,-1347.68,0.00013792,2]
[400753588,1767815432379,-200.0,0.00013816,2]
[400753589,1767815432388,-958.7938,0.00013911,2]
[400753590,1767815432398,-20151.07467921,0.00013911,2]
[400753591,1767815432522,-2001.39991148,0.00013911,2]
[400753592,1767815432560,-500.0,0.00013911,2]
[400753593,1767815432572,-3780.07569434,0.00013911,2]
[400753596,1767815432624,-1570.57116541,0.00013911,2]
[400753598,1767815432636,-9111.431029,0.00013911,2]
[400753602,1767815432676,999.0,0.00013121,3]
[400753604,1767815432697,-609.8984744,0.00013911,2]
[400753606,1767815438328,-942.2,0.00013911,2]
[400753607,1767815438341,-6979.81374616,0.00013911,2]
[400753608,1767815438350,-200.0,0.00013954,2]
[400753609,1767815438360,-2500.0,0.00013961,2]
[400753610,1767815438370,-439.75510736,0.00013989,2]
[400753611,1767815438379,-300.0,0.0001399,2]
[400753612,1767815438388,-302.52168594,0.0001399,2]
[400753613,1767815438398,-152.10889041,0.0001399,2]
[400753614,1767815438407,-2500.0,0.0001399,2]
[400753615,1767815438417,-1661.37527415,0.0001399,2]
[400753616,1767815438428,-250.0,0.0001399,2]
[400753617,1767815438437,-17997.74428466,0.00014002,2]
[400753618,1767815438448,-26694.90869387,0.00014033,2]
[400753620,1767815438457,-1931.25,0.00014051,2]
[400753622,1767815438467,-1705.31,0.0001406,2]
[400753624,1767815438478,-500.0,0.0001406,2]
[400753626,1767815438488,-500.0,0.0001406,2]
[400753628,1767815438497,-384.41343504,0.0001406,2]
[400753630,1767815438506,-500.0,0.0001406,2]
[400753631,1767815438515,-500.0,0.0001406,2]
[400753633,1767815438525,-287.25531591,0.0001406,2]
[400753635,1767815438535,-194.68884463,0.0001406,2]
[400753636,1767815438544,-500.0,0.0001406,2]
[400753637,1767815438553,-500.0,0.0001406,2]
[400753638,1767815438563,-500.0,0.0001406,2]
[400753639,1767815438572,-500.0,0.0001406,2]
[400753640,1767815438581,-169.53425611,0.0001406,2]
[400753641,1767815438590,-137349.68183279,0.00014061,2]
[400753642,1767815438600,-500.0,0.00014102,2]
[400753643,1767815438611,-200.0,0.00014102,2]
[400753645,1767815438620,-200.0,0.00014102,2]
[400753647,1767815438629,-500.0,0.00014102,2]
[400753649,1767815438639,-500.0,0.00014102,2]
[400753651,1767815438648,-500.0,0.00014102,2]
[400753653,1767815438657,-492.06429836,0.00014102,2]
[400753655,1767815438666,-200.0,0.00014102,2]
[400753657,1767815438675,-500.0,0.00014102,2]
[400753659,1767815438684,-151.0,0.00014102,2]
[400753661,1767815438694,-151.0,0.00014102,2]
[400753663,1767815438703,-151.0,0.00014102,2]
[400753665,1767815438712,-151.0,0.00014102,2]
[400753667,1767815438722,-151.0,0.00014102,2]
[400753668,1767815438732,-151.0,0.00014102,2]
[400753670,1767815438741,-151.0,0.00014102,2]
[400753672,1767815438751,-151.0,0.00014102,2]
[400753675,1767815438762,-151.0,0.00014102,2]
[400753677,1767815438771,-151.0,0.00014102,2]
[400753678,1767815438780,-151.0,0.00014102,2]
[400753680,1767815438789,-150.99,0.00014109,2]
[400753682,1767815438798,-9999.99,0.0001411,2]
[400753684,1767815438807,-4539.04,0.0001411,2]
[400753686,1767815438816,-500.0,0.0001411,2]
[400753688,1767815438825,-305.69773206,0.0001411,2]
[400753690,1767815438834,-500.0,0.0001411,2]
[400753692,1767815438844,-500.0,0.0001411,2]
[400753694,1767815438854,-500.0,0.0001411,2]
[400753696,1767815438863,-500.0,0.0001411,2]
[400753698,1767815438872,-500.0,0.0001411,2]
[400753700,1767815438882,-500.0,0.0001411,2]
[400753702,1767815438891,-500.0,0.0001411,2]
[400753705,1767815438900,-500.0,0.0001411,2]
[400753707,1767815438910,-500.0,0.0001411,2]
[400753708,1767815438919,-500.0,0.0001411,2]
[400753710,1767815438929,-500.0,0.0001411,2]
[400753712,1767815438939,-200.0,0.0001411,2]
[400753715,1767815438949,-500.0,0.0001411,2]
[400753716,1767815438958,-500.0,0.0001411,2]
[400753718,1767815438968,-500.0,0.0001411,2]
[400753720,1767815438978,-615.06492354,0.0001411,2]
[400753722,1767815438988,-500.0,0.0001411,2]
[400753724,1767815438997,-500.0,0.0001411,2]
[400753726,1767815439008,-500.0,0.0001411,2]
[400753729,1767815439018,-500.0,0.0001411,2]
[400753731,1767815439028,-262.00155402,0.0001411,2]
[400753732,1767815439037,-500.0,0.0001411,2]
[400753734,1767815439047,-500.0,0.0001411,2]
[400753736,1767815439059,-500.0,0.0001411,2]
[400753739,1767815439069,-154.0,0.0001411,2]
[400753740,1767815439079,-500.0,0.0001411,2]
[400753742,1767815439089,-523.12649514,0.0001411,2]
[400753744,1767815439099,-1699.06006914,0.00014211,2]
[400753746,1767815439109,-10605.9006,0.00014211,2]
[400753748,1767815439118,-1000.0,0.00014211,2]
[400753750,1767815439128,-1852.42,0.00014226,2]
[400753752,1767815439139,-200.0,0.00014251,2]
[400753754,1767815439148,-161.6509,0.00014274,2]
[400753756,1767815439158,-435.92,0.00014308,2]
[400753758,1767815439168,-500.0,0.0001431,2]
[400753760,1767815439178,-500.0,0.0001431,2]
[400753762,1767815439187,-500.0,0.0001431,2]
[400753764,1767815439196,-500.0,0.0001431,2]
[400753766,1767815439206,-500.0,0.0001431,2]
[400753768,1767815439215,-500.0,0.0001431,2]
[400753770,1767815439225,-500.0,0.0001431,2]
[400753772,1767815439234,-500.0,0.0001431,2]
[400753774,1767815439244,-500.0,0.0001431,2]
[400753776,1767815439253,-610.85,0.0001431,2]
[400753778,1767815439262,-610.85,0.0001431,2]
[400753780,1767815439271,-508.99338834,0.0001431,2]
[400753782,1767815439280,-1236.38125715,0.00014322,2]
[400753784,1767815439290,-1705.31,0.00014334,2]
[400753786,1767815439299,-500.0,0.00014364,2]
[400753788,1767815439309,-1280.0,0.00014364,2]
[400753790,1767815439318,-500.0,0.00014364,2]
[400753792,1767815439327,-275.21866833,0.00014364,2]
[400753794,1767815439336,-2619.69,0.00014369,2]
[400753796,1767815439345,-500.0,0.00014376,2]
[400753798,1767815439355,-506.42348911,0.00014389,2]
[400753800,1767815439364,-610.85,0.00014389,2]
[400753802,1767815439373,-200.0,0.00014394,2]
[400753804,1767815439382,-500.0,0.00014419,2]
[400753806,1767815439391,-1280.0,0.00014419,2]
[400753808,1767815439400,-500.0,0.00014419,2]
[400753810,1767815439410,-17997.74428462,0.00014435,2]
[400753812,1767815439419,-500.0,0.00014458,2]
[400753814,1767815439427,-26694.90869383,0.00014463,2]
[400753816,1767815439437,-500.0,0.00014474,2]
[400753818,1767815439446,-1280.0,0.00014474,2]
[400753820,1767815439455,-500.0,0.00014474,2]
[400753822,1767815439464,-255.0,0.00014522,2]
[400753824,1767815439473,-500.0,0.00014528,2]
[400753826,1767815439483,-1280.0,0.00014528,2]
[400753828,1767815439492,-500.0,0.00014528,2]
[400753829,1767815439502,-200.0,0.00014538,2]
[400753831,1767815439511,-250.0,0.0001457,2]
[400753834,1767815439522,-195.0,0.0001457,2]
[400753836,1767815439531,-500.0,0.00014583,2]
[400753838,1767815439540,-1280.0,0.00014583,2]
[400753840,1767815439549,-500.0,0.00014583,2]
[400753842,1767815439558,-1705.31,0.00014608,2]
[400753844,1767815439568,-500.0,0.00014612,2]
[400753846,1767815439577,-500.0,0.00014612,2]
[400753848,1767815439586,-150.0,0.00014612,2]
[400753850,1767815439594,-150.0,0.00014612,2]
[400753852,1767815439604,-500.0,0.00014612,2]
[400753854,1767815439613,-150.0,0.00014612,2]
[400753856,1767815439623,-150.0,0.00014612,2]
[400753858,1767815439632,-150.0,0.00014612,2]
[400753860,1767815439642,-500.0,0.00014612,2]
[400753862,1767815439651,-150.0,0.00014612,2]
[400753863,1767815439661,-150.0,0.00014635,2]
[400753865,1767815439670,-150.0,0.00014635,2]
[400753867,1767815439679,-767.0,0.00014635,2]
[400753869,1767815439688,-335.1109073,0.00014638,2]
[400753871,1767815439697,-1280.0,0.00014638,2]
[400753873,1767815439707,-556.24922462,0.00014638,2]
[400753875,1767815439715,-500.0,0.0001465,2]
[400753877,1767815439724,-227.62898952,0.0001465,2]
[400753879,1767815439734,-500.0,0.0001465,2]
[400753881,1767815439743,-500.0,0.00014667,2]
[400753882,1767815439753,-500.0,0.00014667,2]
[400753883,1767815439763,-150.0,0.00014667,2]
[400753884,1767815439772,-150.0,0.00014667,2]
[400753885,1767815439781,-500.0,0.00014667,2]
[400753886,1767815439790,-150.0,0.00014667,2]
[400753887,1767815439799,-500.0,0.00014667,2]
[400753888,1767815439808,-150.0,0.00014667,2]
[400753889,1767815439818,-300.0,0.00014677,2]
[400753890,1767815439827,-200.0,0.00014683,2]
[400753891,1767815439836,-150.0,0.0001469,2]
[400753892,1767815439845,-767.0,0.0001469,2]
[400753893,1767815439855,-1280.0,0.00014693,2]
[400753894,1767815439864,-420.0,0.00014699,2]
[400753895,1767815439873,-500.0,0.00014722,2]
[400753896,1767815439883,-500.0,0.00014722,2]
[400753897,1767815439892,-200.0,0.00014722,2]
[400753898,1767815439902,-200.0,0.00014722,2]
[400753899,1767815439911,-603.0739404,0.00014722,2]
[400753901,1767815439920,-200.0,0.00014722,2]
[400753902,1767815439930,-500.0,0.00014722,2]
[400753904,1767815439939,-150.0,0.00014722,2]
[400753906,1767815439948,-150.0,0.00014745,2]
[400753908,1767815439957,-767.0,0.00014745,2]
[400753911,1767815439967,-1280.0,0.00014748,2]
[400753912,1767815439976,-195.0,0.0001475,2]
[400753914,1767815439985,-1680.0,0.0001475,2]
[400753916,1767815439995,-1138.62472585,0.00014751,2]
[400753918,1767815440005,-250.0,0.00014751,2]
[400753921,1767815440015,-195.0,0.00014751,2]
[400753922,1767815440024,-500.0,0.00014776,2]
[400753925,1767815440034,-500.0,0.00014776,2]
[400753926,1767815440044,-500.0,0.00014776,2]
[400753928,1767815440055,-150.0,0.00014776,2]
[400753930,1767815440065,-500.0,0.00014787,2]
[400753932,1767815440075,-179.16326783,0.00014799,2]
[400753934,1767815440084,-500.0,0.00014799,2]
[400753936,1767815440095,-285.51728142,0.00014799,2]
[400753938,1767815440104,-500.0,0.00014799,2]
[400753940,1767815440113,-500.0,0.00014799,2]
[400753942,1767815440124,-150.0,0.00014799,2]
[400753944,1767815440133,-767.0,0.00014799,2]
[400753946,1767815440142,-1280.0,0.00014802,2]
[400753948,1767815440151,-500.0,0.00014831,2]
[400753950,1767815440167,-500.0,0.00014831,2]
[400753952,1767815440185,-500.0,0.00014831,2]
[400753954,1767815440195,-150.0,0.00014831,2]
[400753956,1767815440204,-500.0,0.00014854,2]
[400753958,1767815440214,-500.0,0.00014854,2]
[400753960,1767815440223,-500.0,0.00014854,2]
[400753962,1767815440233,-150.0,0.00014854,2]
[400753964,1767815440242,-767.0,0.00014854,2]
[400753966,1767815440251,-1280.0,0.00014857,2]
[400753968,1767815440260,-1705.31,0.00014882,2]
[400753971,1767815440269,-500.0,0.00014886,2]
[400753973,1767815440278,-500.0,0.00014886,2]
[400753975,1767815440287,-500.0,0.00014886,2]
[400753977,1767815440296,-250.0,0.00014886,2]
[400753979,1767815440305,-26694.90869383,0.00014892,2]
[400753981,1767815440314,-500.0,0.00014909,2]
[400753983,1767815440324,-500.0,0.00014909,2]
[400753985,1767815440333,-500.0,0.00014909,2]
[400753987,1767815440342,-250.0,0.00014909,2]
[400753989,1767815440351,-767.0,0.00014909,2]
[400753991,1767815440360,-1280.0,0.00014912,2]
[400753993,1767815440369,-500.0,0.00014924,2]
[400753995,1767815440378,-500.0,0.00014941,2]
[400753997,1767815440389,-500.0,0.00014941,2]
[400753999,1767815440398,-500.0,0.00014941,2]
[400754001,1767815440407,-500.0,0.00014952,2]
[400754003,1767815440416,-564.95924296,0.00014952,2]
[400754005,1767815440427,-500.0,0.00014963,2]
[400754007,1767815440446,-606.19487819,0.00014963,2]
[400754009,1767815440466,-272.01341084,0.00014963,2]
[400754011,1767815440480,-767.0,0.00014964,2]
[400754013,1767815440490,-1280.0,0.00014967,2]
[400754015,1767815440499,-500.0,0.00014996,2]
[400754017,1767815440509,-500.0,0.00015018,2]
[400754019,1767815440518,-767.0,0.00015019,2]
[400754021,1767815440527,-1280.0,0.00015022,2]
[400754023,1767815440536,-610.85,0.0001503,2]
[400754025,1767815440545,-500.0,0.0001505,2]
[400754027,1767815440554,-435.92,0.00015061,2]
[400754029,1767815440563,-500.0,0.00015068,2]
[400754031,1767815440572,-500.0,0.00015073,2]
[400754033,1767815440581,-552.50710843,0.00015073,2]
[400754035,1767815440591,-500.0,0.00015073,2]
[400754037,1767815440600,-173.18700714,0.00015073,2]
[400754039,1767815440609,-500.0,0.00015073,2]
[400754041,1767815440618,-167.52483751,0.00015073,2]
[400754043,1767815440627,-175.21486475,0.00015073,2]
[400754045,1767815440636,-536.66734105,0.00015073,2]
[400754047,1767815440644,-500.0,0.00015073,2]
[400754048,1767815440653,-500.0,0.00015073,2]
[400754050,1767815440663,-161.8794398,0.00015073,2]
[400754052,1767815440672,-500.0,0.00015073,2]
[400754054,1767815440682,-164.10183588,0.00015073,2]
[400754056,1767815440691,-224.66209336,0.00015073,2]
[400754058,1767815440700,-500.0,0.00015073,2]
[400754060,1767815440709,-500.0,0.00015073,2]
[400754063,1767815440719,-500.0,0.00015073,2]
[400754065,1767815440730,-500.0,0.00015073,2]
[400754066,1767815440740,-500.0,0.00015073,2]
[400754068,1767815440750,-500.0,0.00015073,2]
[400754070,1767815440759,-500.0,0.00015073,2]
[400754072,1767815440769,-169.74559645,0.00015073,2]
[400754075,1767815440780,-500.0,0.00015073,2]
[400754077,1767815440790,-500.0,0.00015073,2]
[400754079,1767815440799,-500.0,0.00015073,2]
[400754080,1767815440808,-500.0,0.00015073,2]
[400754082,1767815440817,-500.0,0.00015073,2]
[400754083,1767815440826,-500.0,0.00015073,2]
[400754085,1767815440835,-500.0,0.00015073,2]
[400754087,1767815440845,-500.0,0.00015073,2]
[400754089,1767815440854,-500.0,0.00015073,2]
[400754091,1767815440863,-500.0,0.00015073,2]
[400754093,1767815440872,-500.0,0.00015073,2]
[400754095,1767815440882,-500.0,0.00015073,2]
[400754097,1767815440891,-500.0,0.00015073,2]
[400754099,1767815440900,-500.0,0.00015073,2]
[400754101,1767815440910,-500.0,0.00015073,2]
[400754103,1767815440921,-165.68588329,0.00015073,2]
[400754105,1767815440930,-216.8908213,0.00015073,2]
[400754107,1767815440939,-163.2920989,0.00015073,2]
[400754110,1767815440948,-162.472435,0.00015073,2]
[400754111,1767815440957,-485.97527636,0.00015073,2]
[400754113,1767815440966,-500.0,0.00015073,2]
[400754115,1767815440976,-500.0,0.00015073,2]
[400754117,1767815440985,-500.0,0.00015073,2]
[400754119,1767815440994,-501.49821678,0.00015073,2]
[400754121,1767815441003,-500.0,0.00015073,2]
[400754123,1767815441013,-500.0,0.00015073,2]
[400754125,1767815441022,-767.0,0.00015073,2]
[400754127,1767815441031,-1280.0,0.00015076,2]
[400754129,1767815441041,-500.0,0.00015099,2]
[400754131,1767815441051,-500.0,0.00015105,2]
[400754133,1767815441063,-500.0,0.00015123,2]
[400754135,1767815441072,-500.0,0.00015128,2]
[400754137,1767815441081,-767.0,0.00015128,2]
[400754139,1767815441090,-1280.0,0.00015131,2]
[400754141,1767815441102,-1705.31,0.00015156,2]
[400754143,1767815441111,-460.0,0.0001516,2]
[400754145,1767815441120,-500.0,0.00015178,2]
[400754147,1767815441129,-500.0,0.00015183,2]
[400754149,1767815441139,-767.0,0.00015183,2]
[400754151,1767815441148,-1280.0,0.00015186,2]
[400754153,1767815441157,-500.0,0.00015198,2]
[400754155,1767815441166,-609.83029456,0.00015198,2]
[400754157,1767815441180,-151.0,0.00015224,2]
[400754189,1767815441467,-151.0,0.00015225,2]
[400754192,1767815441493,-151.0,0.00015228,2]
[400754194,1767815441503,-500.0,0.00015232,2]
[400754196,1767815441513,-500.0,0.00015237,2]
[400754198,1767815441523,-767.0,0.00015238,2]
[400754200,1767815441533,-1280.0,0.00015241,2]
[400754202,1767815441543,-151.0,0.00015252,2]
[400754204,1767815441553,-151.0,0.00015252,2]
[400754206,1767815441562,-1931.25,0.00015268,2]
[400754208,1767815441572,-39625.10172944,0.00015278,2]
[400754210,1767815441581,-15182.83,0.00015279,2]
[400754212,1767815441591,-500.0,0.00015287,2]
[400754214,1767815441601,-500.0,0.00015292,2]
[400754216,1767815441612,-767.0,0.00015293,2]
[400754218,1767815441622,-1280.0,0.00015296,2]
[400754220,1767815441632,-500.0,0.00015319,2]
[400754222,1767815441642,-26694.90869383,0.00015322,2]
[400754224,1767815441651,-521.47480439,0.00015342,2]
[400754226,1767815441661,-500.0,0.00015347,2]
[400754228,1767815441670,-767.0,0.00015347,2]
[400754230,1767815441680,-1280.0,0.0001535,2]
[400754232,1767815441690,-406.89851448,0.00015402,2]
[400754234,1767815441699,-767.0,0.00015402,2]
[400754236,1767815441709,-1280.0,0.00015405,2]
[400754238,1767815441719,-1705.31,0.0001543,2]
[400754240,1767815441728,-767.0,0.00015457,2]
[400754242,1767815441737,-1280.0,0.0001546,2]
[400754244,1767815441746,-522.46913605,0.00015472,2]
[400754246,1767815441756,-767.0,0.00015512,2]
[400754248,1767815441765,-1280.0,0.00015515,2]
[400754250,1767815441775,-767.0,0.00015567,2]
[400754252,1767815441784,-1280.0,0.00015569,2]
[400754254,1767815441794,-1001.43294385,0.00015621,2]
[400754256,1767815441803,-1000.0,0.00015621,2]
[400754258,1767815441812,-564.80231149,0.00015621,2]
[400754260,1767815441822,-1000.0,0.00015621,2]
[400754262,1767815441831,-539.72633275,0.00015621,2]
[400754265,1767815441848,-1000.0,0.00015621,2]
[400754267,1767815441858,-1000.0,0.00015621,2]
[400754269,1767815441867,-1000.0,0.00015621,2]
[400754271,1767815441877,-1000.0,0.00015621,2]
[400754273,1767815441887,-1000.0,0.00015621,2]
[400754275,1767815441897,-1000.0,0.00015621,2]
[400754277,1767815441907,-166.49390426,0.00015621,2]
[400754279,1767815441916,-1000.0,0.00015621,2]
[400754281,1767815441925,-1000.0,0.00015621,2]
[400754283,1767815441936,-1000.0,0.00015621,2]
[400754285,1767815441945,-1000.0,0.00015621,2]
[400754287,1767815441955,-500.0,0.00015621,2]
[400754289,1767815441965,-438.43604995,0.00015621,2]
[400754291,1767815441974,-237.23316124,0.00015621,2]
[400754293,1767815441985,-1000.0,0.00015621,2]
[400754295,1767815441994,-1000.0,0.00015621,2]
[400754297,1767815442004,-811.64161933,0.00015621,2]
[400754299,1767815442015,-1000.0,0.00015621,2]
[400754301,1767815442024,-1000.0,0.00015621,2]
[400754303,1767815442035,-1019.44971303,0.00015621,2]
[400754305,1767815442044,-1000.0,0.00015621,2]
[400754307,1767815442057,-331.79442927,0.00015621,2]
[400754309,1767815442067,-1000.0,0.00015621,2]